[Event "Titled Tuesday Blitz January 25 2022"]
[White "Carlsson, Ludvig"]
[Black "Pap, Gyula"]
[WhiteFideId "1727010"]
[BlackFideId "725323"]
[WhiteElo "2178"]
[BlackElo "2553"]
[Result "0-1"]
[Round "04"]
[TimeControl "180+1"]
[Date "2022.01.26"]
[WhiteClock "0:00:04"]
[BlackClock "0:00:09"]

1. d4 {[%clk 0:03:00]}  d5 {[%clk 0:02:58]} 2. Nf3 {[%clk 0:03:00]}  Nf6 {[%clk 0:02:57]} 3. c4 {[%clk 0:03:00]}  c6 {[%clk 0:02:51]} 4. cxd5 {[%clk 0:03:00]}  cxd5 {[%clk 0:02:52]} 5. Nc3 {[%clk 0:03:00]}  e6 {[%clk 0:02:35]} 6. Bf4 {[%clk 0:02:59]}  Bd6 {[%clk 0:02:34]} 7. Bg3 {[%clk 0:02:58]}  Nc6 {[%clk 0:02:33]} 8. e3 {[%clk 0:02:58]}  O-O {[%clk 0:02:30]} 9. Bd3 {[%clk 0:02:58]}  Bxg3 {[%clk 0:02:20]} 10. hxg3 {[%clk 0:02:58]}  h6 {[%clk 0:02:21]} 11. Rc1 {[%clk 0:02:45]}  Qd6 {[%clk 0:02:18]} 12. a3 {[%clk 0:02:43]}  Bd7 {[%clk 0:02:17]} 13. Bb1 {[%clk 0:02:34]}  Rfc8 {[%clk 0:02:00]} 14. Qd3 {[%clk 0:02:34]}  Ne7 {[%clk 0:02:00]} 15. g4 {[%clk 0:02:29]}  Nxg4 {[%clk 0:01:48]} 16. Qh7+ {[%clk 0:02:05]}  Kf8 {[%clk 0:01:48]} 17. Qh8+ {[%clk 0:02:05]}  Ng8 {[%clk 0:01:48]} 18. Bh7 {[%clk 0:02:04]}  Nf6 {[%clk 0:01:43]} 19. Ne5 {[%clk 0:01:47]}  Be8 {[%clk 0:01:35]} 20. Rh3 {[%clk 0:01:25]}  Nxh7 {[%clk 0:01:22]} 21. Qxh7 {[%clk 0:01:26]}  f6 {[%clk 0:01:09]} 22. Rg3 {[%clk 0:01:06]}  Qe7 {[%clk 0:00:59]} 23. Nf3 {[%clk 0:00:52]}  g5 {[%clk 0:00:48]} 24. Qd3 {[%clk 0:00:50]}  Kg7 {[%clk 0:00:45]} 25. Kd2 {[%clk 0:00:47]}  Bg6 {[%clk 0:00:45]} 26. Qb5 {[%clk 0:00:46]}  Rc7 {[%clk 0:00:42]} 27. Rh1 {[%clk 0:00:45]}  Rac8 {[%clk 0:00:41]} 28. Qb3 {[%clk 0:00:21]}  Rc6 {[%clk 0:00:39]} 29. Rgh3 {[%clk 0:00:07]}  Rb6 {[%clk 0:00:37]} 30. Qa2 {[%clk 0:00:07]}  g4 {[%clk 0:00:36]} 31. Rg3 {[%clk 0:00:07]}  gxf3 {[%clk 0:00:36]} 32. gxf3 {[%clk 0:00:08]}  Qc7 {[%clk 0:00:20]} 33. Rhg1 {[%clk 0:00:08]}  Ne7 {[%clk 0:00:20]} 34. Qb1 {[%clk 0:00:06]}  f5 {[%clk 0:00:21]} 35. Qc2 {[%clk 0:00:06]}  Kf7 {[%clk 0:00:19]} 36. f4 {[%clk 0:00:06]}  Qc4 {[%clk 0:00:17]} 37. f3 {[%clk 0:00:04]}  Qb3 {[%clk 0:00:17]} 38. Qxb3 {[%clk 0:00:03]}  Rxb3 {[%clk 0:00:18]} 39. Kc2 {[%clk 0:00:04]}  Rb6 {[%clk 0:00:18]} 40. Rh1 {[%clk 0:00:03]}  h5 {[%clk 0:00:19]} 41. Rhg1 {[%clk 0:00:04]}  Rbc6 {[%clk 0:00:18]} 42. Kd3 {[%clk 0:00:03]}  a6 {[%clk 0:00:17]} 43. Kd2 {[%clk 0:00:02]}  h4 {[%clk 0:00:16]} 44. Rh3 {[%clk 0:00:02]}  Rh8 {[%clk 0:00:16]} 45. Rgh1 {[%clk 0:00:03]}  Nc8 {[%clk 0:00:17]} 46. Rxh4 {[%clk 0:00:03]}  Rxh4 {[%clk 0:00:17]} 47. Rxh4 {[%clk 0:00:04]}  Nd6 {[%clk 0:00:18]} 48. b3 {[%clk 0:00:05]}  Kg7 {[%clk 0:00:15]} 49. a4 {[%clk 0:00:04]}  b5 {[%clk 0:00:14]} 50. a5 {[%clk 0:00:04]}  b4 {[%clk 0:00:13]} 51. Na2 {[%clk 0:00:04]}  Nb7 {[%clk 0:00:10]} 52. Nxb4 {[%clk 0:00:05]}  Rd6 {[%clk 0:00:11]} 53. Rh1 {[%clk 0:00:03]}  Nxa5 {[%clk 0:00:11]} 54. Kc2 {[%clk 0:00:03]}  Rb6 {[%clk 0:00:10]} 55. Kc3 {[%clk 0:00:03]}  Nxb3 {[%clk 0:00:10]} 56. Nxd5 {[%clk 0:00:02]}  exd5 {[%clk 0:00:10]} 57. Rb1 {[%clk 0:00:02]}  Be8 {[%clk 0:00:08]} 58. Rxb3 {[%clk 0:00:02]}  Rxb3+ {[%clk 0:00:09]} 59. Kxb3 {[%clk 0:00:03]}  Kf6 {[%clk 0:00:09]} 60. Kb4 {[%clk 0:00:04]}  Ke6 {[%clk 0:00:09]} 61. Ka5 {[%clk 0:00:04]}  Bb5 {[%clk 0:00:09]} 62. Kb6 {[%clk 0:00:04]}  Be2 {[%clk 0:00:09]} 63. Kc5 {[%clk 0:00:04]}  Bxf3 {[%clk 0:00:09]} 64. Kb6 {[%clk 0:00:04]}  Be2 {[%clk 0:00:10]} 65. Ka5 {[%clk 0:00:04]}  Bd3 {[%clk 0:00:08]} 66. Kb4 {[%clk 0:00:05]}  Bc4 {[%clk 0:00:09]} 67. Ka5 {[%clk 0:00:06]}  Kf6 {[%clk 0:00:09]} 68. Kb4 {[%clk 0:00:06]}  Kg6 {[%clk 0:00:10]} 69. Kc5 {[%clk 0:00:06]}  Kh5 {[%clk 0:00:11]} 70. e4 {[%clk 0:00:07]}  Kg4 {[%clk 0:00:12]} 71. exd5 {[%clk 0:00:06]}  Bb5 {[%clk 0:00:11]} 72. Kb6 {[%clk 0:00:04]}  Kxf4 {[%clk 0:00:10]} 73. d6 {[%clk 0:00:05]}  Ke4 {[%clk 0:00:11]} 74. Kc5 {[%clk 0:00:05]}  f4 {[%clk 0:00:10]} 75. d5 {[%clk 0:00:04]}  f3 {[%clk 0:00:09]} 76. d7 {[%clk 0:00:04]}  Bxd7 {[%clk 0:00:09]} 77. d6 {[%clk 0:00:04]}  f2 {[%clk 0:00:09]} 0-1


[Site "https://www.chess.com"]

[Event "Titled Tuesday Blitz January 25 2022"]
[White "Chor, Kevin"]
[Black "Berezin, Viktor"]
[WhiteFideId "2090740"]
[BlackFideId "14107872"]
[WhiteElo "2644"]
[BlackElo "2310"]
[Result "1-0"]
[Round "04"]
[TimeControl "180+1"]
[Date "2022.01.26"]
[WhiteClock "0:01:32"]
[BlackClock "0:00:50"]

1. e4 {[%clk 0:03:00]}  d5 {[%clk 0:02:39]} 2. exd5 {[%clk 0:03:00]}  Nf6 {[%clk 0:02:34]} 3. c4 {[%clk 0:02:59]}  c6 {[%clk 0:02:34]} 4. d4 {[%clk 0:02:59]}  cxd5 {[%clk 0:02:34]} 5. Nc3 {[%clk 0:02:59]}  Nc6 {[%clk 0:02:32]} 6. Bg5 {[%clk 0:02:58]}  Be6 {[%clk 0:02:13]} 7. Bxf6 {[%clk 0:02:43]}  exf6 {[%clk 0:02:02]} 8. c5 {[%clk 0:02:44]}  Be7 {[%clk 0:01:44]} 9. Nf3 {[%clk 0:02:41]}  O-O {[%clk 0:01:40]} 10. Bb5 {[%clk 0:02:34]}  Na5 {[%clk 0:01:32]} 11. b4 {[%clk 0:02:24]}  Nc4 {[%clk 0:01:28]} 12. Bxc4 {[%clk 0:02:24]}  dxc4 {[%clk 0:01:28]} 13. d5 {[%clk 0:02:24]}  Bg4 {[%clk 0:01:28]} 14. d6 {[%clk 0:02:21]}  Re8 {[%clk 0:01:22]} 15. dxe7 {[%clk 0:02:16]}  Rxe7+ {[%clk 0:01:17]} 16. Kf1 {[%clk 0:02:06]}  Qd3+ {[%clk 0:01:11]} 17. Qxd3 {[%clk 0:02:00]}  cxd3 {[%clk 0:01:12]} 18. Rd1 {[%clk 0:01:57]}  Rd8 {[%clk 0:01:12]} 19. h3 {[%clk 0:01:55]}  Bxf3 {[%clk 0:01:04]} 20. gxf3 {[%clk 0:01:56]}  Rd4 {[%clk 0:01:05]} 21. Kg2 {[%clk 0:01:47]}  Red7 {[%clk 0:00:55]} 22. a3 {[%clk 0:01:37]}  g5 {[%clk 0:00:53]} 23. Ne4 {[%clk 0:01:34]}  Kg7 {[%clk 0:00:52]} 24. Nd6 {[%clk 0:01:34]}  Kg6 {[%clk 0:00:50]} 25. Rd2 {[%clk 0:01:32]} 1-0


[Site "https://www.chess.com"]

[Event "Titled Tuesday Blitz January 25 2022"]
[White "Costachi, Mihnea"]
[Black "Sadhwani, Raunak"]
[WhiteFideId "1217518"]
[BlackFideId "35093487"]
[WhiteElo "2813"]
[BlackElo "3009"]
[Result "1/2-1/2"]
[Round "04"]
[TimeControl "180+1"]
[Date "2022.01.26"]
[WhiteClock "0:00:47"]
[BlackClock "0:00:21"]

1. e4 {[%clk 0:03:00]}  e5 {[%clk 0:03:00]} 2. Nf3 {[%clk 0:03:00]}  Nc6 {[%clk 0:03:00]} 3. Nc3 {[%clk 0:03:00]}  Nf6 {[%clk 0:03:00]} 4. a3 {[%clk 0:02:55]}  d5 {[%clk 0:02:58]} 5. exd5 {[%clk 0:02:54]}  Nxd5 {[%clk 0:02:59]} 6. Bb5 {[%clk 0:02:54]}  Nxc3 {[%clk 0:02:58]} 7. bxc3 {[%clk 0:02:55]}  Bd6 {[%clk 0:02:58]} 8. O-O {[%clk 0:02:55]}  O-O {[%clk 0:02:58]} 9. d4 {[%clk 0:02:56]}  exd4 {[%clk 0:02:58]} 10. cxd4 {[%clk 0:02:57]}  h6 {[%clk 0:02:52]} 11. h3 {[%clk 0:02:54]}  Qf6 {[%clk 0:02:51]} 12. c3 {[%clk 0:02:54]}  Bf5 {[%clk 0:02:46]} 13. Bd3 {[%clk 0:02:55]}  Rfe8 {[%clk 0:02:37]} 14. Rb1 {[%clk 0:02:53]}  b6 {[%clk 0:02:37]} 15. Rb5 {[%clk 0:02:53]}  Bxd3 {[%clk 0:02:36]} 16. Qxd3 {[%clk 0:02:54]}  a6 {[%clk 0:02:29]} 17. Rh5 {[%clk 0:02:46]}  Qg6 {[%clk 0:02:29]} 18. Qxg6 {[%clk 0:02:36]}  fxg6 {[%clk 0:02:29]} 19. Rh4 {[%clk 0:02:36]}  Na5 {[%clk 0:02:30]} 20. a4 {[%clk 0:02:29]}  c6 {[%clk 0:02:18]} 21. Rg4 {[%clk 0:02:29]}  Kh7 {[%clk 0:02:18]} 22. Nh4 {[%clk 0:02:26]}  Re6 {[%clk 0:02:17]} 23. f4 {[%clk 0:02:24]}  Rf6 {[%clk 0:01:59]} 24. f5 {[%clk 0:02:20]}  gxf5 {[%clk 0:01:46]} 25. Rxf5 {[%clk 0:02:20]}  Raf8 {[%clk 0:01:40]} 26. Rxf6 {[%clk 0:02:16]}  Rxf6 {[%clk 0:01:41]} 27. Nf3 {[%clk 0:02:10]}  b5 {[%clk 0:01:41]} 28. axb5 {[%clk 0:02:09]}  cxb5 {[%clk 0:01:42]} 29. Nd2 {[%clk 0:01:58]}  Bf4 {[%clk 0:01:20]} 30. Nb3 {[%clk 0:01:58]}  Bxc1 {[%clk 0:01:08]} 31. Nxc1 {[%clk 0:01:53]}  Rc6 {[%clk 0:01:03]} 32. Na2 {[%clk 0:01:51]}  Nc4 {[%clk 0:00:54]} 33. Re4 {[%clk 0:01:35]}  a5 {[%clk 0:00:53]} 34. Re7 {[%clk 0:01:35]}  Rb6 {[%clk 0:00:46]} 35. Rc7 {[%clk 0:01:28]}  Nd6 {[%clk 0:00:42]} 36. Nc1 {[%clk 0:01:25]}  b4 {[%clk 0:00:42]} 37. cxb4 {[%clk 0:01:22]}  Rxb4 {[%clk 0:00:43]} 38. Ra7 {[%clk 0:01:19]}  a4 {[%clk 0:00:41]} 39. Nd3 {[%clk 0:01:15]}  Rxd4 {[%clk 0:00:36]} 40. Nc5 {[%clk 0:01:15]}  Rc4 {[%clk 0:00:34]} 41. Nxa4 {[%clk 0:01:11]}  Nf5 {[%clk 0:00:33]} 42. Nb6 {[%clk 0:01:04]}  Rc1+ {[%clk 0:00:25]} 43. Kh2 {[%clk 0:01:03]}  Rc2 {[%clk 0:00:24]} 44. Nd5 {[%clk 0:01:02]}  Nh4 {[%clk 0:00:19]} 45. Nf4 {[%clk 0:00:56]}  Kg8 {[%clk 0:00:17]} 46. Kg3 {[%clk 0:00:54]}  g5 {[%clk 0:00:14]} 47. Kg4 {[%clk 0:00:45]}  gxf4 {[%clk 0:00:14]} 48. Kxh4 {[%clk 0:00:45]}  Rxg2 {[%clk 0:00:14]} 49. Ra4 {[%clk 0:00:44]}  Kg7 {[%clk 0:00:14]} 50. Rxf4 {[%clk 0:00:43]}  Kg6 {[%clk 0:00:14]} 51. Rg4+ {[%clk 0:00:43]}  Rxg4+ {[%clk 0:00:15]} 52. hxg4 {[%clk 0:00:43]}  h5 {[%clk 0:00:15]} 53. gxh5+ {[%clk 0:00:43]}  Kh6 {[%clk 0:00:16]} 54. Kg4 {[%clk 0:00:44]}  Kh7 {[%clk 0:00:17]} 55. Kg5 {[%clk 0:00:45]}  Kg7 {[%clk 0:00:18]} 56. h6+ {[%clk 0:00:45]}  Kh7 {[%clk 0:00:18]} 57. Kh5 {[%clk 0:00:46]}  Kh8 {[%clk 0:00:19]} 58. Kg6 {[%clk 0:00:46]}  Kg8 {[%clk 0:00:20]} 59. h7+ {[%clk 0:00:47]}  Kh8 {[%clk 0:00:21]} 60. Kh6 {[%clk 0:00:47]} 1/2-1/2


[Site "https://www.chess.com"]

[Event "Titled Tuesday Blitz January 25 2022"]
[White "De Silva, L M S T"]
[Black "Selbes, Tarik"]
[WhiteFideId "9953698"]
[BlackFideId "6302513"]
[WhiteElo "1631"]
[BlackElo "2290"]
[Result "1-0"]
[Round "04"]
[TimeControl "180+1"]
[Date "2022.01.26"]
[WhiteClock "0:01:11"]
[BlackClock "0:00:58"]

1. e4 {[%clk 0:03:00]}  d6 {[%clk 0:02:57]} 2. d4 {[%clk 0:03:00]}  Nf6 {[%clk 0:02:57]} 3. Nc3 {[%clk 0:03:01]}  g6 {[%clk 0:02:58]} 4. f3 {[%clk 0:03:00]}  a6 {[%clk 0:02:57]} 5. Be3 {[%clk 0:03:00]}  b5 {[%clk 0:02:54]} 6. h4 {[%clk 0:03:00]}  h5 {[%clk 0:02:54]} 7. Qd2 {[%clk 0:03:00]}  Bb7 {[%clk 0:02:53]} 8. Nh3 {[%clk 0:03:00]}  Nbd7 {[%clk 0:02:53]} 9. Ng5 {[%clk 0:03:00]}  Bg7 {[%clk 0:02:53]} 10. Ne2 {[%clk 0:03:00]}  O-O {[%clk 0:02:53]} 11. O-O-O {[%clk 0:03:00]}  c5 {[%clk 0:02:52]} 12. d5 {[%clk 0:02:59]}  Ne5 {[%clk 0:02:48]} 13. Nf4 {[%clk 0:02:59]}  b4 {[%clk 0:02:44]} 14. Kb1 {[%clk 0:02:55]}  a5 {[%clk 0:02:43]} 15. Be2 {[%clk 0:02:52]}  a4 {[%clk 0:02:43]} 16. g4 {[%clk 0:02:50]}  hxg4 {[%clk 0:02:38]} 17. h5 {[%clk 0:02:51]}  gxf3 {[%clk 0:02:37]} 18. Bxf3 {[%clk 0:02:51]}  Nxf3 {[%clk 0:02:36]} 19. Nxf3 {[%clk 0:02:52]}  Nxe4 {[%clk 0:02:36]} 20. Qh2 {[%clk 0:02:52]}  Nc3+ {[%clk 0:01:38]} 21. bxc3 {[%clk 0:02:21]}  bxc3 {[%clk 0:01:39]} 22. Ka1 {[%clk 0:02:14]}  g5 {[%clk 0:01:36]} 23. h6 {[%clk 0:02:12]}  Bf6 {[%clk 0:01:34]} 24. Nh5 {[%clk 0:01:47]}  Ra5 {[%clk 0:01:19]} 25. Bxg5 {[%clk 0:01:17]}  Bxg5 {[%clk 0:00:59]} 26. Nxg5 {[%clk 0:01:18]}  Bxd5 {[%clk 0:00:58]} 27. Ne6 {[%clk 0:01:11]} 1-0


[Site "https://www.chess.com"]

[Event "Titled Tuesday Blitz January 25 2022"]
[White "Deac, Bogdan-Daniel"]
[Black "Horvath, Dominik"]
[WhiteFideId "1226380"]
[BlackFideId "1642561"]
[WhiteElo "3007"]
[BlackElo "2811"]
[Result "1-0"]
[Round "04"]
[TimeControl "180+1"]
[Date "2022.01.26"]
[WhiteClock "0:00:46"]
[BlackClock "0:00:02"]

1. e4 {[%clk 0:03:00]}  e5 {[%clk 0:02:49]} 2. Nf3 {[%clk 0:03:00]}  Nc6 {[%clk 0:02:49]} 3. Bb5 {[%clk 0:03:00]}  a6 {[%clk 0:02:47]} 4. Ba4 {[%clk 0:03:00]}  Nf6 {[%clk 0:02:47]} 5. O-O {[%clk 0:02:59]}  Be7 {[%clk 0:02:45]} 6. d3 {[%clk 0:02:59]}  b5 {[%clk 0:02:45]} 7. Bb3 {[%clk 0:02:59]}  d6 {[%clk 0:02:44]} 8. a3 {[%clk 0:02:59]}  O-O {[%clk 0:02:38]} 9. Nc3 {[%clk 0:02:58]}  Bg4 {[%clk 0:02:39]} 10. Be3 {[%clk 0:02:58]}  Nd4 {[%clk 0:02:33]} 11. Bxd4 {[%clk 0:02:58]}  exd4 {[%clk 0:02:33]} 12. Nd5 {[%clk 0:02:58]}  Nd7 {[%clk 0:02:30]} 13. h3 {[%clk 0:02:52]}  Bxf3 {[%clk 0:02:28]} 14. Qxf3 {[%clk 0:02:53]}  a5 {[%clk 0:02:23]} 15. c3 {[%clk 0:02:46]}  Nc5 {[%clk 0:02:01]} 16. Nxe7+ {[%clk 0:02:33]}  Qxe7 {[%clk 0:02:00]} 17. Bd5 {[%clk 0:02:34]}  dxc3 {[%clk 0:01:11]} 18. Bxa8 {[%clk 0:02:32]}  cxb2 {[%clk 0:01:11]} 19. Rab1 {[%clk 0:02:30]}  Rxa8 {[%clk 0:01:11]} 20. Rxb2 {[%clk 0:02:26]}  Rb8 {[%clk 0:01:06]} 21. Rfb1 {[%clk 0:02:17]}  c6 {[%clk 0:01:06]} 22. d4 {[%clk 0:02:11]}  Nxe4 {[%clk 0:01:01]} 23. d5 {[%clk 0:02:05]}  cxd5 {[%clk 0:00:54]} 24. Rxb5 {[%clk 0:02:04]}  Rxb5 {[%clk 0:00:53]} 25. Rxb5 {[%clk 0:02:04]}  g6 {[%clk 0:00:43]} 26. Rxd5 {[%clk 0:01:46]}  a4 {[%clk 0:00:27]} 27. Qe3 {[%clk 0:01:39]}  Qe6 {[%clk 0:00:23]} 28. Rd4 {[%clk 0:01:32]}  d5 {[%clk 0:00:23]} 29. Rxa4 {[%clk 0:01:26]}  Qc6 {[%clk 0:00:23]} 30. Rb4 {[%clk 0:01:20]}  Kg7 {[%clk 0:00:14]} 31. f3 {[%clk 0:01:06]}  Nc3 {[%clk 0:00:08]} 32. Qe5+ {[%clk 0:00:52]}  f6 {[%clk 0:00:05]} 33. Qe7+ {[%clk 0:00:51]}  Kh6 {[%clk 0:00:02]} 34. Rh4+ {[%clk 0:00:51]}  Kg5 {[%clk 0:00:02]} 35. Rg4+ {[%clk 0:00:46]} 1-0


[Site "https://www.chess.com"]

[Event "Titled Tuesday Blitz January 25 2022"]
[White "Demchenko, Anton"]
[Black "Jaracz, Pawel"]
[WhiteFideId "4160258"]
[BlackFideId "1102222"]
[WhiteElo "2868"]
[BlackElo "2734"]
[Result "0-1"]
[Round "04"]
[TimeControl "180+1"]
[Date "2022.01.26"]
[WhiteClock "0:00:08"]
[BlackClock "0:01:23"]

1. e4 {[%clk 0:03:00]}  c5 {[%clk 0:02:58]} 2. Nf3 {[%clk 0:03:00]}  e6 {[%clk 0:02:58]} 3. g3 {[%clk 0:03:00]}  b6 {[%clk 0:02:55]} 4. Bg2 {[%clk 0:03:00]}  Bb7 {[%clk 0:02:55]} 5. Qe2 {[%clk 0:03:01]}  d6 {[%clk 0:02:55]} 6. O-O {[%clk 0:03:01]}  Be7 {[%clk 0:02:54]} 7. d4 {[%clk 0:02:56]}  cxd4 {[%clk 0:02:54]} 8. Nxd4 {[%clk 0:02:57]}  a6 {[%clk 0:02:52]} 9. c4 {[%clk 0:02:52]}  Nd7 {[%clk 0:02:51]} 10. Nc3 {[%clk 0:02:52]}  Rc8 {[%clk 0:02:50]} 11. Rd1 {[%clk 0:02:43]}  Qc7 {[%clk 0:02:47]} 12. Be3 {[%clk 0:02:35]}  Ngf6 {[%clk 0:02:46]} 13. Rac1 {[%clk 0:02:35]}  O-O {[%clk 0:02:42]} 14. b3 {[%clk 0:02:04]}  Qb8 {[%clk 0:02:40]} 15. f4 {[%clk 0:01:58]}  Rfe8 {[%clk 0:02:38]} 16. Bf2 {[%clk 0:01:55]}  g6 {[%clk 0:02:32]} 17. Re1 {[%clk 0:01:45]}  e5 {[%clk 0:02:21]} 18. fxe5 {[%clk 0:01:44]}  dxe5 {[%clk 0:02:20]} 19. Nc2 {[%clk 0:01:23]}  b5 {[%clk 0:02:18]} 20. Ne3 {[%clk 0:01:24]}  Bb4 {[%clk 0:02:09]} 21. Ned5 {[%clk 0:01:10]}  Bxd5 {[%clk 0:02:02]} 22. exd5 {[%clk 0:01:09]}  bxc4 {[%clk 0:02:02]} 23. bxc4 {[%clk 0:01:06]}  Qc7 {[%clk 0:01:53]} 24. Red1 {[%clk 0:00:21]}  Qxc4 {[%clk 0:01:47]} 25. Qxc4 {[%clk 0:00:21]}  Rxc4 {[%clk 0:01:48]} 26. Na4 {[%clk 0:00:13]}  Rxc1 {[%clk 0:01:42]} 27. Rxc1 {[%clk 0:00:14]}  e4 {[%clk 0:01:42]} 28. Bd4 {[%clk 0:00:04]}  e3 {[%clk 0:01:39]} 29. a3 {[%clk 0:00:02]}  Bd2 {[%clk 0:01:36]} 30. Rb1 {[%clk 0:00:01]}  e2 {[%clk 0:01:36]} 31. Bf2 {[%clk 0:00:01]}  e1=Q+ {[%clk 0:01:36]} 32. Bxe1 {[%clk 0:00:02]}  Rxe1+ {[%clk 0:01:36]} 33. Rxe1 {[%clk 0:00:03]}  Bxe1 {[%clk 0:01:37]} 34. Kf1 {[%clk 0:00:03]}  Ba5 {[%clk 0:01:36]} 35. Ke2 {[%clk 0:00:03]}  Kf8 {[%clk 0:01:36]} 36. Kd3 {[%clk 0:00:04]}  Ke7 {[%clk 0:01:35]} 37. Nb2 {[%clk 0:00:03]}  Ne5+ {[%clk 0:01:33]} 38. Kd4 {[%clk 0:00:03]}  Kd6 {[%clk 0:01:32]} 39. h3 {[%clk 0:00:03]}  Bb6+ {[%clk 0:01:33]} 40. Kc3 {[%clk 0:00:03]}  h5 {[%clk 0:01:32]} 41. Kb3 {[%clk 0:00:02]}  Bf2 {[%clk 0:01:32]} 42. g4 {[%clk 0:00:02]}  hxg4 {[%clk 0:01:32]} 43. hxg4 {[%clk 0:00:03]}  Nfxg4 {[%clk 0:01:33]} 44. Na4 {[%clk 0:00:03]}  Ne3 {[%clk 0:01:31]} 45. Bh1 {[%clk 0:00:04]}  g5 {[%clk 0:01:31]} 46. Nb6 {[%clk 0:00:03]}  g4 {[%clk 0:01:28]} 47. Nc8+ {[%clk 0:00:03]}  Kc7 {[%clk 0:01:28]} 48. Ne7 {[%clk 0:00:04]}  g3 {[%clk 0:01:27]} 49. Kc3 {[%clk 0:00:03]}  g2 {[%clk 0:01:27]} 50. Bxg2 {[%clk 0:00:04]}  Nxg2 {[%clk 0:01:28]} 51. Nf5 {[%clk 0:00:04]}  Bc5 {[%clk 0:01:28]} 52. a4 {[%clk 0:00:03]}  Nf4 {[%clk 0:01:27]} 53. Ng3 {[%clk 0:00:03]}  Nxd5+ {[%clk 0:01:27]} 54. Kb3 {[%clk 0:00:04]}  Ne7 {[%clk 0:01:26]} 55. Ne4 {[%clk 0:00:04]}  Kc6 {[%clk 0:01:27]} 56. Nf6 {[%clk 0:00:04]}  Nd7 {[%clk 0:01:26]} 57. Ne4 {[%clk 0:00:04]}  f5 {[%clk 0:01:26]} 58. Ng5 {[%clk 0:00:04]}  f4 {[%clk 0:01:25]} 59. Nf3 {[%clk 0:00:04]}  Kd5 {[%clk 0:01:25]} 60. Kc2 {[%clk 0:00:04]}  Ne5 {[%clk 0:01:25]} 61. Ng5 {[%clk 0:00:05]}  f3 {[%clk 0:01:24]} 62. Nh3 {[%clk 0:00:04]}  Be3 {[%clk 0:01:24]} 63. Kd1 {[%clk 0:00:04]}  Ke4 {[%clk 0:01:24]} 64. a5 {[%clk 0:00:05]}  N7c6 {[%clk 0:01:24]} 65. Kc2 {[%clk 0:00:05]}  Nxa5 {[%clk 0:01:24]} 66. Kb2 {[%clk 0:00:06]}  Nac6 {[%clk 0:01:25]} 67. Ka3 {[%clk 0:00:06]}  Kd3 {[%clk 0:01:21]} 68. Ka4 {[%clk 0:00:06]}  Kc4 {[%clk 0:01:21]} 69. Ka3 {[%clk 0:00:06]}  f2 {[%clk 0:01:21]} 70. Nxf2 {[%clk 0:00:06]}  Bxf2 {[%clk 0:01:22]} 71. Kb2 {[%clk 0:00:06]}  Bd4+ {[%clk 0:01:22]} 72. Kc2 {[%clk 0:00:07]}  a5 {[%clk 0:01:22]} 73. Kd2 {[%clk 0:00:08]}  a4 {[%clk 0:01:23]} 0-1


[Site "https://www.chess.com"]

[Event "Titled Tuesday Blitz January 25 2022"]
[White "Di Nicolantonio, Lucas"]
[Black "Papasimakopoulos, Alexandros"]
[WhiteFideId "680460"]
[BlackFideId "4244125"]
[WhiteElo "2381"]
[BlackElo "2340"]
[Result "1-0"]
[Round "04"]
[TimeControl "180+1"]
[Date "2022.01.26"]
[WhiteClock "0:00:30"]
[BlackClock "0:00:11"]

1. e4 {[%clk 0:03:00]}  e6 {[%clk 0:02:54]} 2. d4 {[%clk 0:02:56]}  d5 {[%clk 0:02:53]} 3. Nd2 {[%clk 0:02:57]}  Nf6 {[%clk 0:02:52]} 4. e5 {[%clk 0:02:54]}  Nfd7 {[%clk 0:02:52]} 5. f4 {[%clk 0:02:54]}  c5 {[%clk 0:02:53]} 6. c3 {[%clk 0:02:53]}  Nc6 {[%clk 0:02:54]} 7. Ngf3 {[%clk 0:02:53]}  f6 {[%clk 0:02:52]} 8. Bd3 {[%clk 0:02:43]}  cxd4 {[%clk 0:02:40]} 9. cxd4 {[%clk 0:02:41]}  Qb6 {[%clk 0:02:40]} 10. Nb3 {[%clk 0:02:37]}  a5 {[%clk 0:02:18]} 11. a4 {[%clk 0:02:33]}  Bb4+ {[%clk 0:02:17]} 12. Ke2 {[%clk 0:02:16]}  O-O {[%clk 0:02:12]} 13. Be3 {[%clk 0:02:13]}  Be7 {[%clk 0:01:44]} 14. g3 {[%clk 0:01:55]}  Nb4 {[%clk 0:01:42]} 15. Bb1 {[%clk 0:01:52]}  Qa6+ {[%clk 0:01:31]} 16. Kf2 {[%clk 0:01:53]}  Nb6 {[%clk 0:01:31]} 17. Kg2 {[%clk 0:01:49]}  Bd7 {[%clk 0:01:30]} 18. Nc5 {[%clk 0:01:40]}  Bxc5 {[%clk 0:01:25]} 19. dxc5 {[%clk 0:01:41]}  Nc4 {[%clk 0:01:25]} 20. Bd4 {[%clk 0:01:36]}  fxe5 {[%clk 0:01:09]} 21. Nxe5 {[%clk 0:01:07]}  Nxe5 {[%clk 0:00:45]} 22. Bxe5 {[%clk 0:01:07]}  Be8 {[%clk 0:00:33]} 23. Ra3 {[%clk 0:01:04]}  Nc6 {[%clk 0:00:32]} 24. Bd6 {[%clk 0:00:58]}  Rf6 {[%clk 0:00:29]} 25. Re1 {[%clk 0:00:53]}  Bg6 {[%clk 0:00:19]} 26. Bxg6 {[%clk 0:00:41]}  Rxg6 {[%clk 0:00:20]} 27. f5 {[%clk 0:00:41]}  exf5 {[%clk 0:00:19]} 28. Qxd5+ {[%clk 0:00:41]}  Kh8 {[%clk 0:00:19]} 29. Rae3 {[%clk 0:00:38]}  h5 {[%clk 0:00:12]} 30. Re8+ {[%clk 0:00:37]}  Rxe8 {[%clk 0:00:12]} 31. Rxe8+ {[%clk 0:00:38]}  Kh7 {[%clk 0:00:12]} 32. Qg8+ {[%clk 0:00:37]}  Kh6 {[%clk 0:00:13]} 33. Bf4+ {[%clk 0:00:37]}  Rg5 {[%clk 0:00:13]} 34. Re6+ {[%clk 0:00:30]}  g6 {[%clk 0:00:11]} 35. Qxg6# {[%clk 0:00:30]} 1-0


[Site "https://www.chess.com"]